[Event "Saint Louis Norm Congress-IM 2022"]
[Site "Saint Louis"]
[Date "2022.05.22"]
[Round "7.4"]
[White "Rodriguez Rivera, Pedro"]
[Black "Tokhirjonova, Gulrukhbegim"]
[Result "0-1"]
[ECO "D05"]
[WhiteElo "2197"]
[BlackElo "2337"]
[Annotator "TA"]
[PlyCount "50"]
[EventDate "2022.05.20"]
[EventType "tourn"]
[EventCountry "USA"]
[SourceTitle "playchess.com"]
[Source "ChessBase"]
[SourceQuality "1"]
[TimeControl "5400+30"]

{[%evp 15,50,0,-3,-11,-12,-50,-43,-47,-50,-52,-59,-60,-54,-49,-50,-43,-63,-131,-43,-39,-45,-41,-41,-166,-111,-627,-601,-29984,-29985,-29986,-29987,-29987,-29988,-29996,-29997,-29997,-29998]} 1. d4 {[%emt 0:00:01]} Nf6 {[%emt 0:04:44]} 2. Nf3 {[%emt 0:00:02]} d5 {[%emt 0:00:22]} 3. e3 {[%emt 0:00:03]} c5 {[%emt 0:00:23]} 4. c3 {[%emt 0:00:01]} e6 {[%emt 0:00:42]} 5. Bd3 {[%emt 0:00:02]} Bd6 {[%emt 0:00:21]} 6. Nbd2 {[%emt 0:00:02]} Nc6 {[%emt 0:00:43]} 7. O-O {[%emt 0:00:41]} O-O {[%emt 0:00:23]} 8. Re1 {[%emt 0:00:47]} e5 {[%emt 0:02:56]} 9. e4 {[%emt 0:02:33] D05: Colle System with ...e6.} cxd4 {[%emt 0:03:42]} 10. cxd4 {[%emt 0:00:09]} Bg4 {[%emt 0:01:08]} (10... exd4 $2 11. e5 $18) 11. exd5 {[%emt 0:20:05] Black is slightly better.} Nxd4 {[%emt 0:02:06]} 12. h3 {[%emt 0:00:15]} Bh5 {[%emt 0:04:31]} 13. g4 {[%emt 0:04:32]} Bg6 {[%emt 0:12:34]} 14. Bxg6 {[%emt 0:01:41]} fxg6 {[%emt 0:02:46]} 15. Nxd4 {[%emt 0:01:32]} exd4 {[%emt 0:00:15]} 16. Nb3 {[%emt 0:05:22] [#]} ({White should play} 16. Nf3 $15) 16... Bc7 $146 {[%emt 0:01:20]} ({Stronger than} 16... Nxd5 17. Qxd4 Rf7 18. Be3 $15 (18. Qxd5 $2 Bh2+ 19. Kxh2 Qxd5 $19) (18. Rd1 $2 Qh4 $19)) (16... Nd7 $17 {Strongly threatening ...Qh4.} 17. Qxd4 Qh4) ({Predecessor:} 16... Nxd5 17. Qxd4 Nf4 18. Bxf4 Rxf4 19. Qd5+ {½-½ (19) Raedeker,B (2238)-Westerinen,H (2382) Dresden 2006}) 17. Nxd4 $15 {[%emt 0:10:20] Black must now prevent Ne6.} Qd6 {[%emt 0:01:20]} (17... Nxd5 $2 18. Ne6 Qf6 19. Re2 $18) 18. Nf3 {[%emt 0:00:27] Prevents Qh2+.} Nxd5 {[%emt 0:00:42] Hoping for ...Rf7.} 19. Qb3 {[%emt 0:13:43]} (19. Bg5 $1 $15) 19... Bb6 $36 {[%emt 0:04:49][%mdl 2048] Keeping White busy.} ({Much less strong is} 19... Qc5 20. Bg5 Rxf3 21. Qxf3 $18) 20. Kg2 {[%emt 0:12:46][%mdl 8192] [#] Against Qg3+} (20. Kh1 $17 Bxf2 21. Rd1) 20... Rxf3 $1 {[%emt 0:04:32][%mdl 512]} 21. Kxf3 {[%emt 0:00:01]} (21. Qxf3 Rf8) 21... Rf8+ {[%emt 0:01:40] Black mates.} 22. Ke2 {[%emt 0:02:11]} Rxf2+ {[%emt 0:00:27]} ({Worse is} 22... Bxf2 23. Rd1 Qe6+ 24. Be3 Bxe3 25. Rxd5 Bd4+ 26. Kd3 Rf3+ 27. Kxd4 $17) 23. Kd1 {[%emt 0:00:28]} Kf8 {[%emt 0:00:07][%cal Rd5c3]} 24. Bg5 {[%emt 0:03:02]} Ne3+ {[%emt 0:00:24][%mdl 64] [#] Discovered Attack (Double check)} 25. Kc1 {[%emt 0:00:35]} Qd2+ {[%emt 0:00:07] Weighted Error Value: White=0.82/Black=0.05 (flawless)} 0-1

[Event "Saint Louis Norm Congress-IM 2022"]
[Site "Saint Louis"]
[Date "2022.05.22"]
[Round "7.5"]
[White "Ezra Paul Chambers"]
[Black "Antova, Gabriela"]
[Result "1-0"]
[ECO "C70"]
[WhiteElo "2232"]
[BlackElo "2293"]
[Annotator "TA"]
[PlyCount "79"]
[EventDate "2022.05.20"]
[EventType "tourn"]
[EventCountry "USA"]
[SourceTitle "playchess.com"]
[Source "ChessBase"]
[SourceQuality "1"]
[TimeControl "5400+30"]

{[%evp 9,79,42,39,14,17,21,18,15,24,21,41,1,13,26,32,8,0,11,9,10,28,-11,14,7,13,0,0,-9,-16,-33,-27,-53,0,-12,12,14,25,-1,-7,-13,-20,-14,0,0,0,0,0,0,2,7,29,21,69,48,68,52,88,87,63,48,43,0,64,59,812,805,901,893,847,844,752,741]} 1. e4 {[%emt 0:00:05]} e5 {[%emt 0:00:11]} 2. Nf3 {[%emt 0:00:12]} Nc6 {[%emt 0:00:07]} 3. Bb5 {[%emt 0:02:04]} g6 {[%emt 0:00:26]} 4. c3 {[%emt 0:00:50]} a6 {[%emt 0:00:30]} 5. Ba4 {[%emt 0:01:40]} d6 {[%emt 0:01:11]} 6. Bxc6+ {[%emt 0:02:53] C70: Ruy Lopez: 3...a6 4 Ba4, Norwegian and Delayed Schliemann.} bxc6 {[%emt 0:00:24]} 7. d4 {[%emt 0:00:04]} exd4 {[%emt 0:06:34]} 8. cxd4 {[%emt 0:00:14] The position is equal.} Bg7 {[%emt 0:00:43]} 9. O-O {[%emt 0:00:13]} Ne7 {[%emt 0:03:37]} 10. Nc3 {[%emt 0:02:40]} Bg4 {[%emt 0:10:01]} 11. Be3 {[%emt 0:01:25] [#]} Rb8 $146 {[%emt 0:01:02]} ({Predecessor:} 11... O-O 12. h3 Bxf3 13. Qxf3 Qd7 14. Qe2 f5 15. f3 a5 16. Rac1 fxe4 17. fxe4 Rxf1+ 18. Qxf1 {0-1 (36) Fitzsimons,D (2372)-McNab,C (2433) Reading 2016}) 12. Rb1 {[%emt 0:01:18]} O-O {[%emt 0:00:42]} 13. h3 {[%emt 0:03:39]} Bxf3 {[%emt 0:02:04]} 14. Qxf3 {[%emt 0:00:59]} f5 {[%emt 0:01:08]} 15. exf5 {[%emt 0:03:59]} (15. e5 $5) 15... Rxf5 {[%emt 0:01:46]} 16. Qe2 {[%emt 0:00:23]} a5 {[%emt 0:01:45]} 17. Rbc1 {[%emt 0:01:07]} Qd7 {[%emt 0:04:13]} 18. Rc2 {[%emt 0:07:06]} Rf7 {[%emt 0:06:04]} 19. Ne4 {[%emt 0:13:55][%cal Bc3e4,Be4d2,Bd2f3][%mdl 32]} Nf5 {[%emt 0:17:56]} 20. Qd3 {[%emt 0:13:11]} h6 {[%emt 0:11:29]} ({Black should play} 20... Nxe3 $15 21. fxe3 Rxf1+ 22. Kxf1 (22. Qxf1 Qe6 $15) 22... Qf7+ 23. Nf2 Qxa2 24. Rxc6 Rxb2 25. Qc4+ Qxc4+ 26. Rxc4 Bh6) 21. Nd2 {[%emt 0:03:18]} Re7 {[%emt 0:03:31]} 22. Nf3 {[%emt 0:00:53]} Qe6 {[%emt 0:04:09][%csl LRa2,LRe3]} 23. Bc1 {[%emt 0:07:19] Black must now prevent g4.} (23. b3 $5 {[%cal Rc2c6]}) 23... Qd5 {[%emt 0:07:14]} 24. g4 {[%emt 0:09:33]} Nxd4 {[%emt 0:01:05]} ({Don't do} 24... Bxd4 25. Qc4 $16 (25. Rd1 Ne3 $16)) 25. Nxd4 {[%emt 0:01:04] aiming for Rd2.} Bxd4 {[%emt 0:00:56]} 26. Qxg6+ {[%emt 0:06:54]} Rg7 {[%emt 0:00:08]} 27. Qxh6 {[%emt 0:00:08]} Re8 {[%emt 0:07:34] Against Re1} 28. Be3 {[%emt 0:04:20] Dancing on a razor blade.} Re6 {[%emt 0:04:07]} 29. Qf4 {[%emt 0:00:28]} Re4 {[%emt 0:00:02]} 30. Qg3 {[%emt 0:02:40]} Bf6 {[%emt 0:01:33]} (30... c5 $1 $11) 31. b3 $14 {[%emt 0:05:12]} Qe6 {[%emt 0:01:17][%cal Re4g4]} 32. Rc4 $1 {[%emt 0:00:28]} ({But not} 32. Rxc6 Rgxg4 $1 33. hxg4 Rxg4 $15) 32... Rxc4 {[%emt 0:00:24]} 33. bxc4 {[%emt 0:00:03]} Qxc4 {[%emt 0:00:11]} 34. Qf3 {[%emt 0:00:17]} Rf7 {[%emt 0:01:11]} 35. Rb1 {[%emt 0:03:02]} Qd5 {[%emt 0:00:12]} (35... Be5 $11 36. Qg2 a4) 36. Rb8+ {[%emt 0:01:33]} (36. Kg2 $5) 36... Kg7 $2 {[%emt 0:00:08][%mdl 8192] This move loses the game for Black.} (36... Kh7 $14 37. Kg2 Be5 38. Qxd5 cxd5) 37. Qf4 $18 {[%emt 0:01:28][%csl Ge3][%cal Rf4h6] White is clearly winning.} Qd1+ {[%emt 0:00:56]} 38. Kg2 {[%emt 0:00:09][%csl Ge3][%cal Rf4h6]} Qd5+ {[%emt 0:00:02] [#]} 39. f3 $1 {[%emt 0:00:37][%csl Ge3][%cal Rf4h6]} Qxa2+ {[%emt 0:02:15]} 40. Bd2 {[%emt 0:00:27] Weighted Error Value: White=0.10 (very precise) /Black=0.14 (very precise)} 1-0

[Event "Saint Louis Norm Congress-IM 2022"]
[Site "Saint Louis"]
[Date "2022.05.23"]
[Round "8.1"]
[White "Posthuma, Joshua"]
[Black "Antova, Gabriela"]
[Result "1-0"]
[ECO "D46"]
[WhiteElo "2405"]
[BlackElo "2293"]
[Annotator "TA"]
[PlyCount "81"]
[EventDate "2022.05.20"]
[EventType "tourn"]
[EventCountry "USA"]
[SourceTitle "playchess.com"]
[Source "ChessBase"]
[SourceQuality "1"]
[TimeControl "5400+30"]

{[%evp 22,81,7,0,10,0,0,0,0,0,0,-16,-20,-33,18,0,3,3,3,4,9,0,0,0,0,0,6,0,0,0,0,0,0,0,0,-6,0,-12,0,0,0,0,0,0,8,2079,1538,1250,767,697,552,532,29968,29969,29966,29943,5197,948,893,885,29982,29983]} 1. d4 {[%emt 0:00:03]} d5 {[%emt 0:00:09]} 2. c4 {[%emt 0:00:05]} c6 {[%emt 0:00:11]} 3. Nf3 {[%emt 0:00:08]} Nf6 {[%emt 0:00:10]} 4. e3 {[%emt 0:00:23]} e6 {[%emt 0:00:19]} 5. Nbd2 {[%emt 0:00:20]} Nbd7 {[%emt 0:00:46]} 6. Bd3 {[%emt 0:00:13]} Be7 {[%emt 0:04:08]} 7. O-O {[%emt 0:00:31]} O-O {[%emt 0:00:11]} 8. e4 {[%emt 0:01:17]} dxe4 {[%emt 0:00:12]} 9. Nxe4 {[%emt 0:00:08]} c5 {[%emt 0:00:20]} 10. Nxc5 {[%emt 0:03:08]} Nxc5 {[%emt 0:00:25]} 11. dxc5 {[%emt 0:00:05]} Bxc5 {[%emt 0:00:08]} 12. Qe2 {[%emt 0:19:51] was the old line (12.Bg5).} b6 {[%emt 0:02:38] D46: Semi-Slav: 5 e3 Nbd7 6 Bd3, Black avoids the Meran.} 13. Rd1 {[%emt 0:03:18][%cal Od3h7] [#]} Qe7 $146 {[%emt 0:01:32]} ({Predecessor:} 13... Qc7 14. Bg5 Bb7 15. Bxf6 gxf6 16. Be4 Rfd8 17. Bxb7 Qxb7 18. Rxd8+ Rxd8 19. Rd1 Rxd1+ 20. Qxd1 {0-1 (43) Melikhov,E (2292)-Romanchuk,V (2266) Chess.com INT 2022}) 14. Bg5 {[%emt 0:03:17] And now Bxf6 would win.} Bb7 {[%emt 0:00:46] The position is equal.} 15. Ne5 {[%emt 0:01:24][%cal Od3h7] [#] Black must now prevent Bxh7+!} Rfd8 {[%emt 0:04:40]} 16. Rd2 {[%emt 0:17:00]} h6 {[%emt 0:04:42]} 17. Be3 {[%emt 0:23:12]} Rd6 {[%emt 0:09:35]} ({Better is} 17... Bb4 $15 18. Rdd1 Nd7 19. Nxd7 Rxd7) 18. a3 {[%emt 0:03:02]} a5 {[%emt 0:02:28]} 19. Rad1 {[%emt 0:01:00] Threatens to win with Bxc5.} Rad8 {[%emt 0:01:06]} 20. h3 {[%emt 0:06:06]} Ba8 {[%emt 0:19:18]} 21. Bc2 {[%emt 0:00:20]} Qb7 {[%emt 0:05:16][%csl Ga8][%cal Rb7g2]} 22. Nf3 {[%emt 0:00:03] Hoping for Bxc5. Active counter play!} Rxd2 {[%emt 0:05:53]} 23. Rxd2 {[%emt 0:00:09]} Qc7 {[%emt 0:08:48] [#]} 24. Bf4 $1 {[%emt 0:01:48]} Rxd2 {[%emt 0:00:56]} (24... Qe7 25. Kf1) 25. Qxd2 {[%emt 0:00:40]} (25. Bxc7 $2 {too greedy.} Rxe2 26. Ba4 Rxb2 $19) 25... Qe7 {[%emt 0:01:17]} 26. Ne5 {[%emt 0:06:30][%cal Bf3e5,Be5d7,Bd7b6,Bb6c8,Bc8e7][%mdl 32]} Ne4 {[%emt 0:07:17]} 27. Bxe4 {[%emt 0:00:04]} Bxe4 {[%emt 0:00:05]} 28. Nd7 {[%emt 0:00:29]} a4 {[%emt 0:00:43]} 29. Be3 {[%emt 0:03:45]} Bxe3 {[%emt 0:03:42]} 30. fxe3 $11 {[%emt 0:00:04][%mdl 4096] Endgame KQB-KQN} Bc6 {[%emt 0:10:17]} 31. Nxb6 {[%emt 0:00:22]} Qc5 {[%emt 0:00:14]} 32. Nc8 {[%emt 0:01:55]} Qxc4 {[%emt 0:07:34]} 33. Qd8+ $2 {[%emt 0:01:55][%mdl 8192] A mistake that costs the game.} (33. Ne7+ $11 Kf8 34. Qd6 (34. Qd8+ Be8 $11)) 33... Kh7 $18 {[%emt 0:00:02]} 34. Ne7 {[%emt 0:00:12][%csl Ge7][%cal Rd8g8]} Be8 {[%emt 0:01:01]} 35. Qxe8 {[%emt 0:00:23][%csl Ge7][%cal Re8g8]} Qc1+ {[%emt 0:00:01]} 36. Kf2 {[%emt 0:00:25][%csl Ge7][%cal Re8g8]} Qd2+ {[%emt 0:00:49]} 37. Kf3 {[%emt 0:00:20][%csl Ge7][%cal Re8g8]} Qd1+ {[%emt 0:00:31]} 38. Kg3 {[%emt 0:00:21][%csl Ge7][%cal Re8g8]} Qd6+ {[%emt 0:00:09]} 39. Kh4 {[%emt 0:01:29][%csl Ge7][%cal Re8g8]} g5+ {[%emt 0:01:05]} 40. Kh5 {[%emt 0:00:05][%csl Ge7][%cal Re8g8]} Qd1+ {[%emt 0:00:10]} 41. g4 {[%emt 0:00:05] Weighted Error Value: White=0.08 (flawless) /Black=0.57} 1-0

[Event "Saint Louis Norm Congress-IM 2022"]
[Site "Saint Louis"]
[Date "2022.05.23"]
[Round "8.2"]
[White "Tokhirjonova, Gulrukhbegim"]
[Black "Ezra Paul Chambers"]
[Result "1-0"]
[ECO "A11"]
[WhiteElo "2337"]
[BlackElo "2232"]
[Annotator "TA"]
[PlyCount "123"]
[EventDate "2022.05.20"]
[EventType "tourn"]
[EventCountry "USA"]
[SourceTitle "playchess.com"]
[Source "ChessBase"]
[SourceQuality "1"]
[TimeControl "5400+30"]

{[%evp 11,123,28,11,18,25,18,30,13,31,35,51,66,66,41,47,40,33,43,22,32,23,36,48,41,70,73,55,13,14,18,29,16,23,12,14,10,19,10,12,11,14,11,17,0,0,0,0,0,20,0,6,0,0,0,0,0,12,15,5,-1,0,-17,0,0,0,0,0,-12,0,0,0,0,0,0,0,0,0,0,16,8,11,11,23,0,8,0,15,3,19,15,33,45,47,50,61,56,98,99,93,94,87,89,180,180,310,323,537,567,741,649,743,616,490,293]} 1. Nf3 {[%emt 0:01:07]} d5 {[%emt 0:00:19]} 2. g3 {[%emt 0:00:14]} Nf6 {[%emt 0:00:12]} 3. Bg2 {[%emt 0:00:17]} c6 {[%emt 0:00:21]} 4. O-O {[%emt 0:00:46]} Bf5 {[%emt 0:00:28]} 5. c4 {[%emt 0:01:53]} e6 {[%emt 0:00:36]} 6. Qb3 {[%emt 0:01:36]} Qb6 {[%emt 0:01:10]} 7. d3 {[%emt 0:01:35] A11: English Opening: 1...c6.} Nbd7 {[%emt 0:01:44]} 8. cxd5 {[%emt 0:02:01]} exd5 {[%emt 0:04:54]} 9. Qc2 {[%emt 0:03:21][%cal Oe2e4] White has an edge.} Be7 {[%emt 0:07:01]} 10. Nc3 {[%emt 0:01:48]} h6 {[%emt 0:09:37]} 11. e4 {[%emt 0:02:08]} dxe4 {[%emt 0:01:06]} 12. dxe4 {[%emt 0:00:10]} Bh7 {[%emt 0:00:04]} 13. Be3 {[%emt 0:01:35]} Qa6 {[%emt 0:00:34]} 14. Rfd1 {[%emt 0:10:08]} O-O {[%emt 0:13:02]} 15. Qb3 {[%emt 0:03:55] e5 is the strong threat.} Nc5 {[%emt 0:21:57]} 16. Qb4 {[%emt 0:02:43]} Qb6 {[%emt 0:06:07]} 17. Qc4 {[%emt 0:06:29] [#] Hoping for e5.} Qa6 {[%emt 0:06:43]} (17... Bxe4 $2 18. Nxe4 Nfxe4 19. b4 $18) 18. Qxa6 {[%emt 0:06:39] White is more active.} Nxa6 {[%emt 0:00:14] [#]} 19. e5 $146 {[%emt 0:00:28]} ({Predecessor:} 19. Ne5 Rfd8 20. f3 Bc5 21. Bf2 Kf8 22. Bf1 Bxf2+ 23. Kxf2 Nc5 24. b4 Ne6 25. b5 cxb5 26. Nxb5 {½-½ (60) Jumabayev,R (2654)-Ibrayev,N (2395) Almaty 2020}) 19... Ng4 {[%emt 0:00:40]} 20. Bd4 {[%emt 0:03:21] Threatens to win with h3.} f6 {[%emt 0:02:54]} 21. exf6 {[%emt 0:00:59]} Nxf6 {[%emt 0:00:54]} 22. Re1 {[%emt 0:02:27]} Bc5 {[%emt 0:00:32]} 23. Rad1 {[%emt 0:01:19]} Rad8 {[%emt 0:00:11]} 24. h3 {[%emt 0:02:56]} Bb6 {[%emt 0:00:56]} 25. Bf1 {[%emt 0:06:53]} Bxd4 {[%emt 0:06:20]} 26. Nxd4 {[%emt 0:00:35]} Nc5 {[%emt 0:00:17]} 27. f3 {[%emt 0:04:09]} a5 {[%emt 0:02:58]} 28. Re5 {[%emt 0:01:20]} Nfd7 {[%emt 0:00:23]} 29. Re7 {[%emt 0:00:12]} Bg6 {[%emt 0:01:16]} 30. f4 {[%emt 0:11:56]} Rfe8 {[%emt 0:00:39]} 31. Bc4+ {[%emt 0:00:55]} Kf8 {[%emt 0:00:54]} 32. Rxe8+ {[%emt 0:01:30]} Rxe8 {[%emt 0:01:42]} 33. f5 {[%emt 0:02:13]} Bf7 {[%emt 0:00:27]} 34. Bxf7 {[%emt 0:00:25]} Kxf7 {[%emt 0:00:01]} 35. Ne6 {[%emt 0:01:05][%cal Oc3a4]} g6 {[%emt 0:01:15]} 36. Nd4 {[%emt 0:03:08]} Nf6 {[%emt 0:00:45]} 37. Kg2 {[%emt 0:02:39]} Re3 {[%emt 0:02:25]} 38. fxg6+ {[%emt 0:02:44]} Kxg6 {[%emt 0:00:06]} 39. Nde2 {[%emt 0:01:41]} b5 {[%emt 0:02:21]} 40. Nf4+ {[%emt 0:01:08]} Kf7 {[%emt 0:01:13]} 41. Kf2 {[%emt 0:01:33]} Re7 {[%emt 0:01:19]} 42. Kf3 {[%emt 0:00:33]} Nfd7 {[%emt 0:00:40]} 43. Rd6 {[%emt 0:01:36]} Ne5+ {[%emt 0:00:25]} 44. Kg2 $1 {[%emt 0:00:03]} Ne6 {[%emt 0:00:46]} 45. b3 {[%emt 0:00:56]} Nxf4+ {[%emt 0:02:23]} 46. gxf4 $11 {[%emt 0:00:01][%mdl 4096] Endgame KRN-KRN} Ng6 {[%emt 0:00:12]} 47. Kf3 {[%emt 0:00:56]} (47. Rxc6 $5 {[%cal Rg2f3]} Re3 48. Kf2 (48. Nxb5 Nxf4+ 49. Kf2 Rxh3 $11) 48... Rxh3 49. Nxb5 $11) 47... Re6 {[%emt 0:00:53]} 48. Rd7+ {[%emt 0:01:11]} Ne7 {[%emt 0:00:29]} 49. Ra7 {[%emt 0:01:25]} Rd6 {[%emt 0:00:37]} 50. Ne4 {[%emt 0:01:16]} Rd3+ {[%emt 0:00:20]} 51. Kg4 {[%emt 0:01:06]} Rd4 {[%emt 0:01:24]} 52. Ng3 {[%emt 0:00:16]} Rd5 $1 {[%emt 0:00:54]} 53. Rxa5 {[%emt 0:00:29]} Rd3 {[%emt 0:00:46]} 54. Ra7 {[%emt 0:00:24] [#] aiming for Nf5.} Kf8 {[%emt 0:00:27]} 55. h4 {[%emt 0:01:02][%cal Bh3h4,Bh4h5][%mdl 32]} Nd5 {[%emt 0:00:16]} 56. Ne4 {[%emt 0:01:50]} Rd4 {[%emt 0:00:50]} (56... Rd1 $16) 57. Kf5 $18 {[%emt 0:00:11]} Ne3+ {[%emt 0:00:27]} (57... Rd1 {keeps fighting.} 58. Rh7 Re1) 58. Ke5 {[%emt 0:00:13]} Rd8 {[%emt 0:00:27]} (58... Rd3 59. Rc7 Ng4+ 60. Kf5 Ne3+ 61. Ke6 Nd5 62. Rxc6 Nxf4+ 63. Ke5 Ne2 64. Rxh6 Re3) 59. Nf6 {[%emt 0:00:31] Strongly threatening Ke6. White is clearly winning.} Ng2 {[%emt 0:00:33]} 60. h5 {[%emt 0:00:51]} c5 {[%emt 0:00:28]} 61. Nd7+ {[%emt 0:00:29]} Kg8 {[%emt 0:00:31]} 62. Nxc5 {[%emt 0:00:11] Weighted Error Value: White=0.08 (flawless) /Black=0.14 (very precise)} (62. f5 $142 Re8+ 63. Kd6) 1-0